[Event "Titled Tuesday Blitz March 08 Late 2022"]
[White "Bellahcene, Bilel"]
[Black "Pichot, Alan"]
[WhiteFideId "696358"]
[BlackFideId "110973"]
[WhiteElo "2562"]
[BlackElo "2579"]
[Result "0-1"]
[Round "07"]
[TimeControl "180+1"]
[Date "2022.03.08"]
[WhiteClock "0:00:37"]
[BlackClock "0:01:56"]

1. d4 {[%clk 0:03:00]}  Nf6 {[%clk 0:02:59]} 2. c4 {[%clk 0:03:00]}  e6 {[%clk 0:02:59]} 3. Nf3 {[%clk 0:03:00]}  d5 {[%clk 0:02:59]} 4. Nc3 {[%clk 0:02:59]}  dxc4 {[%clk 0:02:55]} 5. e3 {[%clk 0:02:50]}  a6 {[%clk 0:02:53]} 6. Bxc4 {[%clk 0:02:50]}  c5 {[%clk 0:02:53]} 7. O-O {[%clk 0:02:49]}  Nc6 {[%clk 0:02:53]} 8. d5 {[%clk 0:02:43]}  exd5 {[%clk 0:02:47]} 9. Nxd5 {[%clk 0:02:43]}  Be6 {[%clk 0:02:33]} 10. Nxf6+ {[%clk 0:02:17]}  Qxf6 {[%clk 0:02:34]} 11. Bxe6 {[%clk 0:02:17]}  Qxe6 {[%clk 0:02:34]} 12. b3 {[%clk 0:02:06]}  Bd6 {[%clk 0:02:21]} 13. Bb2 {[%clk 0:02:02]}  O-O {[%clk 0:02:18]} 14. h3 {[%clk 0:01:40]}  Rfd8 {[%clk 0:02:14]} 15. Qe2 {[%clk 0:01:38]}  Be7 {[%clk 0:02:10]} 16. Rfd1 {[%clk 0:01:37]}  b5 {[%clk 0:02:08]} 17. Rxd8+ {[%clk 0:01:30]}  Rxd8 {[%clk 0:02:09]} 18. Rd1 {[%clk 0:01:30]}  Rc8 {[%clk 0:02:08]} 19. Qd2 {[%clk 0:00:59]}  h6 {[%clk 0:02:07]} 20. Qd5 {[%clk 0:00:47]}  Rd8 {[%clk 0:02:03]} 21. e4 {[%clk 0:00:37]}  Rxd5 {[%clk 0:01:59]} 22. exd5 {[%clk 0:00:37]}  Qd7 {[%clk 0:01:56]} 0-1


[Site "https://www.chess.com"]

[Event "Titled Tuesday Blitz March 08 Late 2022"]
[White "Bortnyk, Olexandr"]
[Black "Vakhlamov, Igor L."]
[WhiteFideId "14120828"]
[BlackFideId "24126748"]
[WhiteElo "2723"]
[BlackElo "2401"]
[Result "1-0"]
[Round "07"]
[TimeControl "180+1"]
[Date "2022.03.08"]
[WhiteClock "0:00:05"]
[BlackClock "0:00:04"]

1. e4 {[%clk 0:03:00]}  e6 {[%clk 0:02:52]} 2. d4 {[%clk 0:03:00]}  d5 {[%clk 0:02:53]} 3. Nc3 {[%clk 0:03:00]}  Nc6 {[%clk 0:02:53]} 4. Bb5 {[%clk 0:02:54]}  dxe4 {[%clk 0:02:42]} 5. f3 {[%clk 0:02:43]}  e3 {[%clk 0:02:35]} 6. Bxe3 {[%clk 0:02:43]}  Nf6 {[%clk 0:02:35]} 7. Nge2 {[%clk 0:02:42]}  Be7 {[%clk 0:02:33]} 8. Bxc6+ {[%clk 0:02:38]}  bxc6 {[%clk 0:02:34]} 9. O-O {[%clk 0:02:39]}  O-O {[%clk 0:02:34]} 10. Bf2 {[%clk 0:02:38]}  a5 {[%clk 0:02:33]} 11. Nf4 {[%clk 0:02:35]}  Nd5 {[%clk 0:02:30]} 12. Nd3 {[%clk 0:02:35]}  Nxc3 {[%clk 0:02:24]} 13. bxc3 {[%clk 0:02:36]}  Ba6 {[%clk 0:02:24]} 14. Re1 {[%clk 0:02:34]}  Rb8 {[%clk 0:02:09]} 15. Qd2 {[%clk 0:02:22]}  h6 {[%clk 0:02:02]} 16. a4 {[%clk 0:02:14]}  c5 {[%clk 0:01:42]} 17. dxc5 {[%clk 0:02:12]}  Qd5 {[%clk 0:01:38]} 18. Re5 {[%clk 0:01:57]}  Qc4 {[%clk 0:01:29]} 19. Bd4 {[%clk 0:01:43]}  Rfd8 {[%clk 0:01:24]} 20. Re4 {[%clk 0:01:37]}  Qd5 {[%clk 0:00:57]} 21. Rg4 {[%clk 0:01:34]}  Bg5 {[%clk 0:00:40]} 22. f4 {[%clk 0:01:32]}  Qf5 {[%clk 0:00:39]} 23. h3 {[%clk 0:01:04]}  Bf6 {[%clk 0:00:39]} 24. Ne5 {[%clk 0:01:04]}  Bb7 {[%clk 0:00:34]} 25. c6 {[%clk 0:01:02]}  Bxe5 {[%clk 0:00:27]} 26. fxe5 {[%clk 0:00:57]}  Bxc6 {[%clk 0:00:22]} 27. Rf1 {[%clk 0:00:57]}  Qh5 {[%clk 0:00:19]} 28. Qf4 {[%clk 0:00:30]}  Rd7 {[%clk 0:00:19]} 29. Qg3 {[%clk 0:00:25]}  g6 {[%clk 0:00:12]} 30. Be3 {[%clk 0:00:25]}  Rd5 {[%clk 0:00:07]} 31. Qf4 {[%clk 0:00:10]}  Rf8 {[%clk 0:00:06]} 32. Bd4 {[%clk 0:00:03]}  Bxa4 {[%clk 0:00:05]} 33. Qf6 {[%clk 0:00:04]}  Bb5 {[%clk 0:00:04]} 34. Rf3 {[%clk 0:00:02]}  c5 {[%clk 0:00:04]} 35. Rfg3 {[%clk 0:00:02]}  g5 {[%clk 0:00:04]} 36. Rxg5+ {[%clk 0:00:02]}  hxg5 {[%clk 0:00:05]} 37. Rxg5+ {[%clk 0:00:03]}  Qxg5 {[%clk 0:00:05]} 38. Qxg5+ {[%clk 0:00:04]}  Kh7 {[%clk 0:00:06]} 39. Qh5+ {[%clk 0:00:04]}  Kg7 {[%clk 0:00:07]} 40. Qg5+ {[%clk 0:00:04]}  Kh8 {[%clk 0:00:07]} 41. Be3 {[%clk 0:00:05]}  Rd1+ {[%clk 0:00:05]} 42. Kh2 {[%clk 0:00:05]}  Rd7 {[%clk 0:00:04]} 43. Qh6+ {[%clk 0:00:04]}  Kg8 {[%clk 0:00:05]} 44. Bg5 {[%clk 0:00:04]}  f5 {[%clk 0:00:05]} 45. Bf6 {[%clk 0:00:04]}  Kf7 {[%clk 0:00:04]} 46. Qh5+ {[%clk 0:00:04]}  Kg8 {[%clk 0:00:04]} 47. Qg6+ {[%clk 0:00:04]}  Rg7 {[%clk 0:00:04]} 48. Qxg7# {[%clk 0:00:05]} 1-0


[Site "https://www.chess.com"]

[Event "Titled Tuesday Blitz March 08 Late 2022"]
[White "Brunner, Nicolas"]
[Black "Domingo Nunez, Alejandro"]
[WhiteFideId "620246"]
[BlackFideId "22245561"]
[WhiteElo "2372"]
[BlackElo "2215"]
[Result "0-1"]
[Round "07"]
[TimeControl "180+1"]
[Date "2022.03.09"]
[WhiteClock "0:00:07"]
[BlackClock "0:00:51"]

1. d4 {[%clk 0:03:00]}  g6 {[%clk 0:03:00]} 2. e4 {[%clk 0:02:59]}  Bg7 {[%clk 0:03:00]} 3. Nc3 {[%clk 0:02:59]}  c6 {[%clk 0:03:01]} 4. f4 {[%clk 0:02:53]}  d5 {[%clk 0:03:01]} 5. e5 {[%clk 0:02:52]}  f6 {[%clk 0:03:02]} 6. Nf3 {[%clk 0:02:50]}  fxe5 {[%clk 0:03:02]} 7. Nxe5 {[%clk 0:02:45]}  Nh6 {[%clk 0:03:03]} 8. Be2 {[%clk 0:02:41]}  O-O {[%clk 0:03:03]} 9. O-O {[%clk 0:02:40]}  Nd7 {[%clk 0:03:03]} 10. Be3 {[%clk 0:02:29]}  Nf5 {[%clk 0:03:03]} 11. Bf2 {[%clk 0:02:29]}  Nd6 {[%clk 0:03:02]} 12. Bh4 {[%clk 0:02:26]}  Bh6 {[%clk 0:02:54]} 13. Nd3 {[%clk 0:01:51]}  Nf5 {[%clk 0:02:23]} 14. Bf2 {[%clk 0:01:50]}  Qc7 {[%clk 0:02:17]} 15. g4 {[%clk 0:01:47]}  Nd6 {[%clk 0:02:14]} 16. Bg3 {[%clk 0:01:41]}  Nc4 {[%clk 0:02:10]} 17. Rf2 {[%clk 0:01:24]}  Bg7 {[%clk 0:02:02]} 18. Ne5 {[%clk 0:01:16]}  Ndxe5 {[%clk 0:01:58]} 19. fxe5 {[%clk 0:01:04]}  Rxf2 {[%clk 0:01:49]} 20. Bxf2 {[%clk 0:01:04]}  Nxb2 {[%clk 0:01:49]} 21. Qf1 {[%clk 0:01:04]}  Be6 {[%clk 0:01:47]} 22. Rb1 {[%clk 0:01:00]}  Nc4 {[%clk 0:01:45]} 23. Bxc4 {[%clk 0:01:00]}  dxc4 {[%clk 0:01:46]} 24. Ne4 {[%clk 0:01:00]}  b6 {[%clk 0:01:29]} 25. Be3 {[%clk 0:00:50]}  Rf8 {[%clk 0:01:27]} 26. Qe2 {[%clk 0:00:40]}  Qd7 {[%clk 0:01:20]} 27. h3 {[%clk 0:00:38]}  Qd5 {[%clk 0:01:14]} 28. Ng5 {[%clk 0:00:30]}  Bc8 {[%clk 0:01:08]} 29. Bf2 {[%clk 0:00:14]}  Bb7 {[%clk 0:00:52]} 30. Rb4 {[%clk 0:00:07]}  c5 {[%clk 0:00:51]} 0-1


[Site "https://www.chess.com"]

[Event "Titled Tuesday Blitz March 08 Late 2022"]
[White "Butti, Enrique"]
[Black "Todorovic, Bojan"]
[WhiteFideId "3700470"]
[BlackFideId "917087"]
[WhiteElo "2080"]
[BlackElo "2266"]
[Result "0-1"]
[Round "07"]
[TimeControl "180+1"]
[Date "2022.03.09"]
[WhiteClock "0:00:01"]
[BlackClock "0:00:21"]

1. Nf3 {[%clk 0:03:00]}  Nf6 {[%clk 0:02:58]} 2. c4 {[%clk 0:02:59]}  g6 {[%clk 0:02:55]} 3. d4 {[%clk 0:02:58]}  Bg7 {[%clk 0:02:54]} 4. Nc3 {[%clk 0:02:58]}  O-O {[%clk 0:02:53]} 5. Bg5 {[%clk 0:02:56]}  d6 {[%clk 0:02:47]} 6. e3 {[%clk 0:02:55]}  Bf5 {[%clk 0:02:39]} 7. Bd3 {[%clk 0:02:53]}  Bxd3 {[%clk 0:02:35]} 8. Qxd3 {[%clk 0:02:52]}  Nbd7 {[%clk 0:02:31]} 9. O-O {[%clk 0:02:51]}  c6 {[%clk 0:02:14]} 10. Rfd1 {[%clk 0:02:49]}  Qa5 {[%clk 0:02:08]} 11. Qd2 {[%clk 0:02:43]}  h6 {[%clk 0:02:01]} 12. Bh4 {[%clk 0:02:37]}  g5 {[%clk 0:01:58]} 13. Bg3 {[%clk 0:02:26]}  Qf5 {[%clk 0:01:57]} 14. h4 {[%clk 0:02:09]}  Ne4 {[%clk 0:01:56]} 15. Nxe4 {[%clk 0:02:04]}  Qxe4 {[%clk 0:01:56]} 16. hxg5 {[%clk 0:02:03]}  hxg5 {[%clk 0:01:55]} 17. Nxg5 {[%clk 0:02:02]}  Qg4 {[%clk 0:01:52]} 18. Nf3 {[%clk 0:01:54]}  f5 {[%clk 0:01:51]} 19. d5 {[%clk 0:01:45]}  c5 {[%clk 0:01:48]} 20. Qc2 {[%clk 0:01:39]}  Nf6 {[%clk 0:01:46]} 21. Nh2 {[%clk 0:01:31]}  Qh5 {[%clk 0:01:45]} 22. f3 {[%clk 0:01:28]}  Kf7 {[%clk 0:01:41]} 23. Nf1 {[%clk 0:01:25]}  Rh8 {[%clk 0:01:40]} 24. Kf2 {[%clk 0:01:24]}  Nd7 {[%clk 0:01:25]} 25. Nd2 {[%clk 0:01:18]}  Be5 {[%clk 0:01:22]} 26. f4 {[%clk 0:01:01]}  Bf6 {[%clk 0:01:19]} 27. Rh1 {[%clk 0:00:56]}  Qg6 {[%clk 0:01:19]} 28. Rxh8 {[%clk 0:00:42]}  Rxh8 {[%clk 0:01:18]} 29. Qd1 {[%clk 0:00:39]}  Bxb2 {[%clk 0:01:04]} 30. Rb1 {[%clk 0:00:38]}  Bc3 {[%clk 0:01:05]} 31. Rxb7 {[%clk 0:00:35]}  Bxd2 {[%clk 0:01:03]} 32. Rxd7 {[%clk 0:00:29]}  Bxe3+ {[%clk 0:01:01]} 33. Kxe3 {[%clk 0:00:27]}  Qxg3+ {[%clk 0:01:01]} 34. Qf3 {[%clk 0:00:26]}  Qe1+ {[%clk 0:01:01]} 35. Qe2 {[%clk 0:00:26]}  Qc1+ {[%clk 0:00:56]} 36. Kf3 {[%clk 0:00:26]}  Qc3+ {[%clk 0:00:48]} 37. Kf2 {[%clk 0:00:20]}  Qd4+ {[%clk 0:00:47]} 38. Kf3 {[%clk 0:00:20]}  Qf6 {[%clk 0:00:44]} 39. Rxa7 {[%clk 0:00:16]}  Rb8 {[%clk 0:00:28]} 40. a4 {[%clk 0:00:13]}  Rb3+ {[%clk 0:00:26]} 41. Kf2 {[%clk 0:00:11]}  Rb2 {[%clk 0:00:26]} 42. Rxe7+ {[%clk 0:00:09]}  Kg6 {[%clk 0:00:22]} 43. Re6 {[%clk 0:00:06]}  Rxe2+ {[%clk 0:00:20]} 44. Kxe2 {[%clk 0:00:02]}  Qxe6+ {[%clk 0:00:20]} 45. dxe6 {[%clk 0:00:02]}  Kf6 {[%clk 0:00:21]} 46. a5 {[%clk 0:00:01]}  Kxe6 {[%clk 0:00:21]} 47. a6 {[%clk 0:00:01]}  Kd7 {[%clk 0:00:21]} 48. a7 {[%clk 0:00:01]}  Kc7 {[%clk 0:00:21]} 0-1


[Site "https://www.chess.com"]

[Event "Titled Tuesday Blitz March 08 Late 2022"]
[White "Chigaev, Maksim"]
[Black "Jaferian, Koosha"]
[WhiteFideId "4108116"]
[BlackFideId "12507440"]
[WhiteElo "2502"]
[BlackElo "2030"]
[Result "1-0"]
[Round "07"]
[TimeControl "180+1"]
[Date "2022.03.08"]
[WhiteClock "0:00:28"]
[BlackClock "0:00:16"]

1. d4 {[%clk 0:03:00]}  Nf6 {[%clk 0:02:59]} 2. Nf3 {[%clk 0:02:59]}  e6 {[%clk 0:02:59]} 3. Bf4 {[%clk 0:02:59]}  c5 {[%clk 0:02:56]} 4. e3 {[%clk 0:02:59]}  Nc6 {[%clk 0:02:56]} 5. Nbd2 {[%clk 0:02:57]}  d5 {[%clk 0:02:56]} 6. c3 {[%clk 0:02:55]}  Bd6 {[%clk 0:02:57]} 7. dxc5 {[%clk 0:02:51]}  Bxc5 {[%clk 0:02:53]} 8. Bd3 {[%clk 0:02:51]}  Bd6 {[%clk 0:02:49]} 9. Bxd6 {[%clk 0:02:50]}  Qxd6 {[%clk 0:02:50]} 10. O-O {[%clk 0:02:51]}  e5 {[%clk 0:02:47]} 11. e4 {[%clk 0:02:51]}  O-O {[%clk 0:02:43]} 12. Re1 {[%clk 0:02:50]}  Bg4 {[%clk 0:02:41]} 13. h3 {[%clk 0:02:45]}  Bxf3 {[%clk 0:02:41]} 14. Qxf3 {[%clk 0:02:43]}  dxe4 {[%clk 0:02:39]} 15. Nxe4 {[%clk 0:02:42]}  Nxe4 {[%clk 0:02:39]} 16. Bxe4 {[%clk 0:02:42]}  Rac8 {[%clk 0:02:28]} 17. Rad1 {[%clk 0:02:39]}  Qc7 {[%clk 0:02:15]} 18. b4 {[%clk 0:02:20]}  b6 {[%clk 0:01:55]} 19. Qf5 {[%clk 0:01:54]}  g6 {[%clk 0:01:53]} 20. Qf6 {[%clk 0:01:54]}  Nd8 {[%clk 0:01:34]} 21. h4 {[%clk 0:01:31]}  Ne6 {[%clk 0:01:29]} 22. h5 {[%clk 0:01:32]}  Rfd8 {[%clk 0:00:56]} 23. hxg6 {[%clk 0:01:23]}  hxg6 {[%clk 0:00:52]} 24. Bxg6 {[%clk 0:01:19]}  fxg6 {[%clk 0:00:48]} 25. Qxe6+ {[%clk 0:01:17]}  Qf7 {[%clk 0:00:47]} 26. Qxe5 {[%clk 0:00:57]}  Re8 {[%clk 0:00:43]} 27. Qd4 {[%clk 0:00:51]}  Rf8 {[%clk 0:00:42]} 28. Rd2 {[%clk 0:00:38]}  Rc4 {[%clk 0:00:41]} 29. Qe5 {[%clk 0:00:37]}  Rf4 {[%clk 0:00:39]} 30. f3 {[%clk 0:00:35]}  Rf5 {[%clk 0:00:39]} 31. Qe6 {[%clk 0:00:33]}  Qxe6 {[%clk 0:00:24]} 32. Rxe6 {[%clk 0:00:34]}  Kg7 {[%clk 0:00:24]} 33. Re7+ {[%clk 0:00:29]}  R8f7 {[%clk 0:00:20]} 34. Rdd7 {[%clk 0:00:29]}  Rxe7 {[%clk 0:00:17]} 35. Rxe7+ {[%clk 0:00:30]}  Kf6 {[%clk 0:00:17]} 36. Rxa7 {[%clk 0:00:31]}  b5 {[%clk 0:00:16]} 37. Ra5 {[%clk 0:00:28]} 1-0


[Site "https://www.chess.com"]

[Event "Titled Tuesday Blitz March 08 Late 2022"]
[White "Clawitter, Craig"]
[Black "Warakomska, Anna"]
[WhiteFideId "2023105"]
[BlackFideId "1130790"]
[WhiteElo "2255"]
[BlackElo "2062"]
[Result "0-1"]
[Round "07"]
[TimeControl "180+1"]
[Date "2022.03.09"]
[WhiteClock "0:00:04"]
[BlackClock "0:00:54"]

1. e4 {[%clk 0:03:00]}  c5 {[%clk 0:02:59]} 2. Nf3 {[%clk 0:03:00]}  e6 {[%clk 0:02:58]} 3. d4 {[%clk 0:03:01]}  cxd4 {[%clk 0:02:58]} 4. Nxd4 {[%clk 0:03:02]}  Nc6 {[%clk 0:02:58]} 5. Nc3 {[%clk 0:03:01]}  Qc7 {[%clk 0:02:58]} 6. Be3 {[%clk 0:03:01]}  a6 {[%clk 0:02:58]} 7. Qd2 {[%clk 0:03:00]}  Nf6 {[%clk 0:02:58]} 8. f3 {[%clk 0:02:52]}  Be7 {[%clk 0:02:56]} 9. O-O-O {[%clk 0:02:52]}  b5 {[%clk 0:02:53]} 10. Nxc6 {[%clk 0:02:50]}  dxc6 {[%clk 0:02:53]} 11. Bd3 {[%clk 0:02:43]}  O-O {[%clk 0:02:45]} 12. g4 {[%clk 0:02:43]}  e5 {[%clk 0:02:43]} 13. Ne2 {[%clk 0:02:36]}  Be6 {[%clk 0:02:40]} 14. Kb1 {[%clk 0:02:34]}  Rfd8 {[%clk 0:02:36]} 15. Ng3 {[%clk 0:02:31]}  Nd7 {[%clk 0:02:29]} 16. Nf5 {[%clk 0:02:26]}  Bf8 {[%clk 0:02:28]} 17. h4 {[%clk 0:02:13]}  Nb6 {[%clk 0:02:19]} 18. Bxb6 {[%clk 0:01:59]}  Qxb6 {[%clk 0:02:20]} 19. h5 {[%clk 0:01:51]}  c5 {[%clk 0:01:54]} 20. Qg5 {[%clk 0:01:49]}  f6 {[%clk 0:01:32]} 21. Qh4 {[%clk 0:01:25]}  c4 {[%clk 0:01:31]} 22. Be2 {[%clk 0:01:22]}  c3 {[%clk 0:01:30]} 23. b3 {[%clk 0:00:20]}  Qa5 {[%clk 0:01:28]} 24. Qe1 {[%clk 0:00:16]}  Bb4 {[%clk 0:01:08]} 25. Rxd8+ {[%clk 0:00:14]}  Rxd8 {[%clk 0:01:08]} 26. Qc1 {[%clk 0:00:14]}  Rd2 {[%clk 0:01:04]} 27. Ng3 {[%clk 0:00:12]}  Bxb3 {[%clk 0:00:55]} 28. axb3 {[%clk 0:00:12]}  Ba3 {[%clk 0:00:56]} 29. Qg1 {[%clk 0:00:07]}  Bb2 {[%clk 0:00:55]} 30. Qc5 {[%clk 0:00:04]}  Qa1# {[%clk 0:00:54]} 0-1


[Site "https://www.chess.com"]

[Event "Titled Tuesday Blitz March 08 Late 2022"]
[White "Curtis, John"]
[Black "Vine, Elzbieta"]
[WhiteFideId "3200256"]
[BlackFideId "1119320"]
[WhiteElo "2203"]
[BlackElo "1819"]
[Result "1-0"]
[Round "07"]
[TimeControl "180+1"]
[Date "2022.03.09"]
[WhiteClock "0:00:08"]
[BlackClock "0:00:01"]

1. Nf3 {[%clk 0:02:46]}  d5 {[%clk 0:02:58]} 2. c4 {[%clk 0:02:46]}  c6 {[%clk 0:02:52]} 3. cxd5 {[%clk 0:02:43]}  cxd5 {[%clk 0:02:51]} 4. d4 {[%clk 0:02:44]}  Nf6 {[%clk 0:02:49]} 5. Nc3 {[%clk 0:02:44]}  Nc6 {[%clk 0:02:48]} 6. Bf4 {[%clk 0:02:43]}  Bg4 {[%clk 0:02:45]} 7. e3 {[%clk 0:02:42]}  e6 {[%clk 0:02:38]} 8. Bb5 {[%clk 0:02:41]}  Bd6 {[%clk 0:02:31]} 9. Qa4 {[%clk 0:02:38]}  Rc8 {[%clk 0:02:23]} 10. Ne5 {[%clk 0:02:12]}  O-O {[%clk 0:02:13]} 11. Bxc6 {[%clk 0:02:00]}  bxc6 {[%clk 0:02:07]} 12. Nxg4 {[%clk 0:01:57]}  Nxg4 {[%clk 0:02:01]} 13. Bxd6 {[%clk 0:01:39]}  Qxd6 {[%clk 0:02:00]} 14. Qd1 {[%clk 0:01:25]}  f5 {[%clk 0:01:52]} 15. h3 {[%clk 0:01:19]}  Nxe3 {[%clk 0:01:29]} 16. fxe3 {[%clk 0:01:18]}  Qg3+ {[%clk 0:01:28]} 17. Kd2 {[%clk 0:01:18]}  Qxg2+ {[%clk 0:01:26]} 18. Qe2 {[%clk 0:01:19]}  Qg5 {[%clk 0:01:16]} 19. Rag1 {[%clk 0:00:56]}  Qh4 {[%clk 0:01:04]} 20. Kc2 {[%clk 0:00:51]}  c5 {[%clk 0:01:01]} 21. dxc5 {[%clk 0:00:45]}  Rxc5 {[%clk 0:00:52]} 22. Rd1 {[%clk 0:00:35]}  Rfc8 {[%clk 0:00:41]} 23. Rd4 {[%clk 0:00:34]}  Qd8 {[%clk 0:00:31]} 24. Qa6 {[%clk 0:00:33]}  Qd7 {[%clk 0:00:24]} 25. Rhd1 {[%clk 0:00:22]}  e5 {[%clk 0:00:20]} 26. R4d3 {[%clk 0:00:12]}  f4 {[%clk 0:00:16]} 27. exf4 {[%clk 0:00:08]}  d4 {[%clk 0:00:13]} 28. fxe5 {[%clk 0:00:08]}  Rxe5 {[%clk 0:00:01]} 29. Rxd4 {[%clk 0:00:08]} 1-0


[Site "https://www.chess.com"]

[Event "Titled Tuesday Blitz March 08 Late 2022"]
[White "Dobrov, Vladimir"]
[Black "Ibarra Jerez, Jose Carlos"]
[WhiteFideId "4136594"]
[BlackFideId "2226332"]
[WhiteElo "2614"]
[BlackElo "2626"]
[Result "1-0"]
[Round "07"]
[TimeControl "180+1"]
[Date "2022.03.08"]
[WhiteClock "0:01:28"]
[BlackClock "0:00:41"]

1. d4 {[%clk 0:02:49]}  d6 {[%clk 0:03:00]} 2. Nf3 {[%clk 0:02:48]}  g6 {[%clk 0:02:59]} 3. e4 {[%clk 0:02:40]}  Nf6 {[%clk 0:02:58]} 4. Bd3 {[%clk 0:02:37]}  Bg7 {[%clk 0:02:57]} 5. O-O {[%clk 0:02:37]}  O-O {[%clk 0:02:56]} 6. Re1 {[%clk 0:02:38]}  Nc6 {[%clk 0:02:53]} 7. c3 {[%clk 0:02:37]}  e5 {[%clk 0:02:52]} 8. Nbd2 {[%clk 0:02:35]}  Re8 {[%clk 0:02:52]} 9. h3 {[%clk 0:02:28]}  Nh5 {[%clk 0:02:38]} 10. Nb3 {[%clk 0:02:23]}  h6 {[%clk 0:02:32]} 11. Be3 {[%clk 0:02:18]}  Qf6 {[%clk 0:02:22]} 12. Nbd2 {[%clk 0:02:13]}  Qg5 {[%clk 0:02:19]} 13. Nxg5 {[%clk 0:02:12]}  hxg5 {[%clk 0:02:04]} 14. d5 {[%clk 0:02:10]}  Nb8 {[%clk 0:01:54]} 15. Bxg5 {[%clk 0:02:10]}  Nd7 {[%clk 0:01:37]} 16. b4 {[%clk 0:02:09]}  Nf4 {[%clk 0:01:35]} 17. Bf1 {[%clk 0:02:07]}  Nf8 {[%clk 0:01:29]} 18. Bh4 {[%clk 0:02:02]}  Bh6 {[%clk 0:01:24]} 19. Nc4 {[%clk 0:02:01]}  Nh7 {[%clk 0:01:24]} 20. Na5 {[%clk 0:01:59]}  Kh8 {[%clk 0:01:22]} 21. c4 {[%clk 0:01:59]}  f5 {[%clk 0:01:22]} 22. c5 {[%clk 0:01:58]}  fxe4 {[%clk 0:01:17]} 23. cxd6 {[%clk 0:01:58]}  cxd6 {[%clk 0:01:17]} 24. Nc4 {[%clk 0:01:59]}  Bf8 {[%clk 0:01:16]} 25. Rxe4 {[%clk 0:01:58]}  Bf5 {[%clk 0:01:16]} 26. f3 {[%clk 0:01:58]}  Rac8 {[%clk 0:01:11]} 27. Rc1 {[%clk 0:01:57]}  Bxe4 {[%clk 0:01:08]} 28. fxe4 {[%clk 0:01:57]}  Bh6 {[%clk 0:01:08]} 29. Rc2 {[%clk 0:01:54]}  Rf8 {[%clk 0:01:01]} 30. Nxd6 {[%clk 0:01:50]}  Rxc2 {[%clk 0:01:02]} 31. Qxc2 {[%clk 0:01:50]}  Nh5 {[%clk 0:01:03]} 32. Bf2 {[%clk 0:01:46]}  Ng5 {[%clk 0:01:01]} 33. Nxb7 {[%clk 0:01:43]}  Nf4 {[%clk 0:00:59]} 34. d6 {[%clk 0:01:43]}  Nge6 {[%clk 0:00:59]} 35. d7 {[%clk 0:01:42]}  Bg5 {[%clk 0:00:59]} 36. g3 {[%clk 0:01:38]}  Nh5 {[%clk 0:00:56]} 37. h4 {[%clk 0:01:38]}  Be7 {[%clk 0:00:53]} 38. Bh3 {[%clk 0:01:38]}  Nd4 {[%clk 0:00:52]} 39. Bxd4 {[%clk 0:01:38]}  exd4 {[%clk 0:00:52]} 40. Qc7 {[%clk 0:01:32]}  d3 {[%clk 0:00:44]} 41. d8=Q {[%clk 0:01:31]}  Bxd8 {[%clk 0:00:43]} 42. Nxd8 {[%clk 0:01:31]}  d2 {[%clk 0:00:43]} 43. Qc3+ {[%clk 0:01:28]}  Nf6 {[%clk 0:00:41]} 44. Qxd2 {[%clk 0:01:27]}  Nxe4 {[%clk 0:00:41]} 45. Qd4+ {[%clk 0:01:28]}  Nf6 {[%clk 0:00:41]} 46. Ne6 {[%clk 0:01:28]} 1-0


[Site "https://www.chess.com"]

[Event "Titled Tuesday Blitz March 08 Late 2022"]
[White "Dounis, Alexandros"]
[Black "Tanenbaum, Zachary"]
[WhiteFideId "4213238"]
[BlackFideId "2060850"]
[WhiteElo "2204"]
[BlackElo "2168"]
[Result "0-1"]
[Round "07"]
[TimeControl "180+1"]
[Date "2022.03.08"]
[WhiteClock "0:00:05"]
[BlackClock "0:00:05"]

1. Nf3 {[%clk 0:03:00]}  d5 {[%clk 0:02:59]} 2. g3 {[%clk 0:03:01]}  Nf6 {[%clk 0:02:59]} 3. Bg2 {[%clk 0:03:01]}  c6 {[%clk 0:02:59]} 4. O-O {[%clk 0:03:01]}  Bf5 {[%clk 0:03:00]} 5. d3 {[%clk 0:03:02]}  Nbd7 {[%clk 0:03:00]} 6. c4 {[%clk 0:03:01]}  dxc4 {[%clk 0:03:00]} 7. dxc4 {[%clk 0:03:01]}  e5 {[%clk 0:03:00]} 8. Nc3 {[%clk 0:02:59]}  Be7 {[%clk 0:02:59]} 9. Nh4 {[%clk 0:02:50]}  Be6 {[%clk 0:02:55]} 10. b3 {[%clk 0:02:47]}  O-O {[%clk 0:02:54]} 11. Qc2 {[%clk 0:02:47]}  Bb4 {[%clk 0:02:48]} 12. Rd1 {[%clk 0:02:44]}  Qc7 {[%clk 0:02:41]} 13. a3 {[%clk 0:02:40]}  Bc5 {[%clk 0:02:28]} 14. Bb2 {[%clk 0:02:32]}  Rfd8 {[%clk 0:02:19]} 15. Na4 {[%clk 0:02:18]}  h6 {[%clk 0:01:50]} 16. Nxc5 {[%clk 0:02:10]}  Nxc5 {[%clk 0:01:51]} 17. b4 {[%clk 0:02:10]}  Ncd7 {[%clk 0:01:46]} 18. Nf5 {[%clk 0:02:10]}  Nb6 {[%clk 0:01:40]} 19. Ne3 {[%clk 0:02:09]}  Ng4 {[%clk 0:01:25]} 20. Nxg4 {[%clk 0:02:00]}  Bxg4 {[%clk 0:01:26]} 21. Qe4 {[%clk 0:02:00]}  f5 {[%clk 0:01:18]} 22. Qxe5 {[%clk 0:01:59]}  Qxe5 {[%clk 0:01:17]} 23. Bxe5 {[%clk 0:02:00]}  Rxd1+ {[%clk 0:01:14]} 24. Rxd1 {[%clk 0:01:59]}  Bxe2 {[%clk 0:01:15]} 25. Rd4 {[%clk 0:01:40]}  Re8 {[%clk 0:01:10]} 26. f4 {[%clk 0:01:25]}  Nxc4 {[%clk 0:01:06]} 27. Rd7 {[%clk 0:01:12]}  Nxe5 {[%clk 0:01:01]} 28. fxe5 {[%clk 0:01:13]}  Ba6 {[%clk 0:00:49]} 29. Bf1 {[%clk 0:01:13]}  Bxf1 {[%clk 0:00:44]} 30. Kxf1 {[%clk 0:01:14]}  Rxe5 {[%clk 0:00:44]} 31. Rxb7 {[%clk 0:01:14]}  a5 {[%clk 0:00:43]} 32. Rb6 {[%clk 0:00:54]}  axb4 {[%clk 0:00:32]} 33. axb4 {[%clk 0:00:55]}  Re4 {[%clk 0:00:28]} 34. Rxc6 {[%clk 0:00:50]}  Rxb4 {[%clk 0:00:28]} 35. Rc2 {[%clk 0:00:50]}  Kf7 {[%clk 0:00:27]} 36. Kg2 {[%clk 0:00:49]}  Rb3 {[%clk 0:00:27]} 37. Rc7+ {[%clk 0:00:44]}  Kf6 {[%clk 0:00:27]} 38. Rc6+ {[%clk 0:00:44]}  Kg5 {[%clk 0:00:27]} 39. Rc7 {[%clk 0:00:34]}  g6 {[%clk 0:00:26]} 40. Rc6 {[%clk 0:00:29]}  Kh5 {[%clk 0:00:23]} 41. Rc5 {[%clk 0:00:24]}  Rb2+ {[%clk 0:00:20]} 42. Kg1 {[%clk 0:00:19]}  Kg4 {[%clk 0:00:19]} 43. Rc6 {[%clk 0:00:17]}  g5 {[%clk 0:00:18]} 44. Rc4+ {[%clk 0:00:11]}  Kh3 {[%clk 0:00:16]} 45. Rc6 {[%clk 0:00:10]}  h5 {[%clk 0:00:12]} 46. Rh6 {[%clk 0:00:09]}  Kg4 {[%clk 0:00:12]} 47. Rc6 {[%clk 0:00:09]}  h4 {[%clk 0:00:10]} 48. Rc4+ {[%clk 0:00:08]}  Kh3 {[%clk 0:00:08]} 49. gxh4 {[%clk 0:00:08]}  g4 {[%clk 0:00:06]} 50. h5 {[%clk 0:00:06]}  Rg2+ {[%clk 0:00:04]} 51. Kf1 {[%clk 0:00:06]}  Rxh2 {[%clk 0:00:05]} 52. Rc5 {[%clk 0:00:05]}  f4 {[%clk 0:00:04]} 53. h6 {[%clk 0:00:05]}  Kg3 {[%clk 0:00:03]} 54. Rc6 {[%clk 0:00:05]}  f3 {[%clk 0:00:04]} 55. Ke1 {[%clk 0:00:04]}  Rh1+ {[%clk 0:00:04]} 56. Kd2 {[%clk 0:00:04]}  f2 {[%clk 0:00:04]} 57. Rf6 {[%clk 0:00:04]}  Rxh6 {[%clk 0:00:04]} 58. Rxh6 {[%clk 0:00:04]}  f1=Q {[%clk 0:00:04]} 59. Re6 {[%clk 0:00:05]}  Qf4+ {[%clk 0:00:03]} 60. Re3+ {[%clk 0:00:05]}  Qxe3+ {[%clk 0:00:03]} 61. Kxe3 {[%clk 0:00:05]}  Kh2 {[%clk 0:00:04]} 62. Kf2 {[%clk 0:00:05]}  g3+ {[%clk 0:00:05]} 0-1


[Site "https://www.chess.com"]